Cogmind - Beta 13 @@@ ROGUE MODE // 2024.04.22 @ 00:00:50 Player: Red_Zig Result: Core destroyed Performance ------------- Evolutions (6) 3000 Regions Visited (16) 3200 Robots Destroyed (87) 435 Value Destroyed (2272) 2272 Prototype IDs (8) 160 Alien Tech Used (0) 0 Bonus (849) 849 TOTAL SCORE: 9916 Bonus ------- High Alert Combat Kills 162 Follower Combat Kills 187 Entered DSFs 500 Cogmind --------- Core Integrity 0/1150 Matter 65/300 Energy 32/325 System Corruption 0% Temperature Critical (695) Movement Immobile (Siege) Location -4/Factory Parts ------- > --- POWER (2) -------- Antimatter Reactor Improved Fusion Compressor > --- PROPULSION (6) --- Improved Heavy Treads Improved Heavy Treads Biometal Heavy Treads > --- UTILITY (7) ------ Medium Storage Unit Advanced Targeting Computer Damper Plating Dynamic Insulation System > --- WEAPON (4) ------- KE Penetrator Railgun Railgun Hypervelocity Mass Driver > --- INVENTORY (10) --- Improved Heavy Treads Improved Cooling System Improved Hardlight Generator Enhanced Quantum Rifle Disruptor Cannon Phase Cannon Improved KE Penetrator Peak State ------------ > --- POWER ------------ Antimatter Reactor Improved Fusion Compressor > --- PROPULSION ------- Improved Heavy Treads Improved Heavy Treads Biometal Heavy Treads > --- UTILITY ---------- Medium Storage Unit Advanced Targeting Computer Damper Plating Dynamic Insulation System > --- WEAPON ----------- Enhanced Quantum Rifle Disruptor Cannon KE Penetrator Railgun > --- INVENTORY -------- Improved Heavy Treads Improved Cooling System Improved Hardlight Generator Phase Cannon Improved KE Penetrator Railgun Hypervelocity Mass Driver [Rating: 124] Favorites ----------- Power Light Deuterium Engine Engine Light Deuterium Engine Power Core Light Nuclear Core Reactor Antimatter Reactor Propulsion Cooled Airjet Treads Light Treads Leg Aluminum Leg Wheel Wheel Hover Unit Cooled Airjet Flight Unit Flight Unit Utility Hacking Suite Device Heat Sink Storage Medium Storage Unit Processor Advanced Targeting Computer Hackware Hacking Suite Protection Damper Plating Weapon Particle Gun Energy Gun Particle Gun Energy Cannon Disruptor Cannon Ballistic Gun Precision Assault Rifle Ballistic Cannon Advanced Assault Cannon Launcher Rocket Launcher Impact Weapon Heavy Hammer Piercing Weapon Heavy Pick Build | -11 -10 -9 -8 -7 -7 -6 -6 -6 -6 -6 -5 -5 -5 -4 -4 -4 ------- Run | Yrd Mat Mat Mat Fac DSF Fac Was Fac Low Low Fac Ext Cet Fac Was Fac Slots Evolved 12 | . . 2 2 2 . 2 . . . . 2 . . 2 . . Power 1 | . . . . . . . . . . . 1 . . . . . Propulsion 4 | . . 1 1 . . . . . . . 1 . . 1 . . Utility 5 | . . 1 1 . . 2 . . . . . . . 1 . . Weapon 2 | . . . . 2 . . . . . . . . . . . . Parts Attached 124 | 6 8 16 41 2 2 5 1 3 2 . 5 8 1 3 13 8 Power 15 | 1 . 1 8 . 1 1 . . . . 1 . . . 2 . Engine 11 | 1 . 1 6 . 1 1 . . . . 1 . . . . . Core 3 | . . . 2 . . . . . . . . . . . 1 . Reactor 1 | . . . . . . . . . . . . . . . 1 . Propulsion 32 | 2 2 3 12 . . 2 . . . . 1 4 . 1 3 2 Treads 8 | . . . 2 . . . . . . . . 1 . . 3 2 Leg 8 | 2 . 3 3 . . . . . . . . . . . . . Wheel 2 | . . . 2 . . . . . . . . . . . . . Hover 7 | . . . 5 . . 1 . . . . . . . 1 . . Flight 7 | . 2 . . . . 1 . . . . 1 3 . . . . Utility 34 | 1 . 3 12 . . 2 1 1 . . 2 4 1 1 4 2 Device 18 | . . 3 8 . . . . 1 . . . 3 1 . 2 . Storage 3 | 1 . . 1 . . . . . . . . . . . . 1 Processor 3 | . . . . . . 1 1 . . . . . . . . 1 Hackware 8 | . . . 3 . . 1 . . . . 2 1 . 1 . . Protection 2 | . . . . . . . . . . . . . . . 2 . Artifact . | . . . . . . . . . . . . . . . . . Weapon 43 | 2 6 9 9 2 1 . . 2 2 . 1 . . 1 4 4 Energy Gun 13 | 2 1 6 3 . . . . . . . . . . . 1 . Energy Cannon 3 | . . . . . . . . . . . . . . 1 2 . Ballistic Gun 15 | . 5 1 4 1 1 . . . . . . . . . . 3 Ballistic Cannon 3 | . . . . 1 . . . . . . . . . . 1 1 Launcher 5 | . . 2 1 . . . . . 1 . 1 . . . . . Special Weapon . | . . . . . . . . . . . . . . . . . Impact Weapon 3 | . . . 1 . . . . 1 1 . . . . . . . Slashing Weapon . | . . . . . . . . . . . . . . . . . Piercing Weapon 1 | . . . . . . . . 1 . . . . . . . . Special Melee Weapon . | . . . . . . . . . . . . . . . . . Unidentified Prototypes 6 | . . 2 2 1 . 1 . . . . . . . . . . Parts Lost 37 | . . 2 13 . . . . . . . 4 9 . 9 . . Power 4 | . . . 2 . . . . . . . 1 1 . . . . Propulsion 17 | . . 2 5 . . . . . . . 2 5 . 3 . . Utility 12 | . . . 4 . . . . . . . . 3 . 5 . . Weapon 4 | . . . 2 . . . . . . . 1 . . 1 . . Highest Loss Streak 9 | . . 1 7 . . . . . . . 3 7 . 9 . . To Critical Strikes . | . . . . . . . . . . . . . . . . . Average Slot Usage (%) 77 | . 72 75 86 85 100 98 96 98 93 93 78 56 41 34 48 68 Engine 4 | . 7 7 3 7 7 6 6 6 6 6 4 3 . . . . Core 2 | . . . 5 . . . . . . . . . . . 2 5 Treads 4 | . . . 9 . . . . . . . . 1 . . 11 15 Leg 5 | . 15 12 9 . . . . . . . . . . . . . Hover 9 | . . . 5 30 30 25 26 26 26 26 20 8 . . . . Flight 3 | . 12 12 1 . . . . . . . 2 2 11 7 . . Device 12 | . . 21 27 . . . . 5 6 6 . 1 5 3 6 6 Storage 2 | . 7 . . 7 7 6 6 6 6 6 5 3 . . . 3 Hackware 10 | . . . 2 23 23 24 26 26 26 26 27 26 23 21 5 . Energy Gun 7 | . 17 14 13 . . . . . . . . . . . 3 4 Ballistic Gun 6 | . 10 6 3 7 15 13 13 13 6 6 5 3 . . . 7 Ballistic Cannon 2 | . . . . . 7 6 6 6 6 6 5 3 . . 3 2 Impact Weapon 1 | . . . . 7 7 6 6 5 4 6 2 . . . . . Naked Turns . | . . . . . . . . . . . . . . . . . Heaviest Build 113 | 13 13 15 30 32 37 37 32 36 35 32 32 30 3 13 107 113 Greatest Support 225 | 20 20 20 40 32 32 32 32 32 48 32 36 24 13 13 215 225 Greatest Overweight (x) 3 | . . 1 3 . 1 1 . 1 . . 1 3 . . . . Average Overweight (x) . | . . . . . . . . . . . . . . . . . Largest Inventory Capacity 10 | 8 8 5 10 10 10 10 10 10 10 10 10 10 5 5 5 10 Average Capacity 7 | 6 6 5 5 10 10 10 10 10 10 10 10 8 5 5 5 8 Most Carried 10 | 6 6 5 8 10 10 10 10 10 10 10 10 10 5 5 4 8 Average Carried 6 | 4 5 4 4 7 9 9 9 9 9 10 9 7 4 4 2 4 Final Capacity 10 | 8 5 5 10 10 10 10 10 10 10 10 10 5 5 5 5 10 Final Carried 10 | 6 5 5 7 10 10 10 9 10 10 10 9 5 5 4 2 8 Class Distribution -------------------- 34% | Scavenger-Mutant 25% | Hacker-Mutant 12% | Mutant 10% | Hacker-Gunner 7% | Scavenger-Gunner 5% | Hacker-Skirmisher Dominant Class ---------------- Mutant | -10/Materials Scavenger-Mutant | -9/Materials Scavenger-Mutant | -8/Materials Hacker-Mutant | -7/Factory Hacker-Gunner | -7/DSF Hacker-Gunner | -6/Factory Hacker-Gunner | -6/Waste Hacker-Skirmisher | -6/Factory Hacker-Mutant | -6/Lower Caves Hacker-Mutant | -6/Lower Caves Hacker-Mutant | -5/Factory Hacker-Mutant | -5/Extension Hacker-Mutant | -5/Cetus Hacker-Mutant | -4/Factory Scavenger-Tank | -4/Waste Scavenger-Gunner | -4/Factory Resources | -11 -10 -9 -8 -7 -7 -6 -6 -6 -6 -6 -5 -5 -5 -4 -4 -4 ----------- Run | Yrd Mat Mat Mat Fac DSF Fac Was Fac Low Low Fac Ext Cet Fac Was Fac Matter Collected 1832 | 165 78 465 561 . . 150 . 28 53 10 93 83 . . 146 . Remotely . | . . . . . . . . . . . . . . . . . Salvage Created 2733 | . 78 580 1078 . 63 309 . 28 85 . 210 . . 18 . 284 Parts 178 | . 12 50 71 . 4 4 . 4 3 . 9 . . 3 . 18 Haulers Intercepted 6 | . . 1 4 . . 1 . . . . . . . . . . Recyclers Shooed 3 | . . 2 1 . . . . . . . . . . . . . Parts Field Recycled . | . . . . . . . . . . . . . . . . . Retrieved Matter . | . . . . . . . . . . . . . . . . . Parts Self-Destructed 6 | . . . . . . . . . 6 . . . . . . . Prevented 4 | . . . . . . . . . 4 . . . . . . . Kills | -11 -10 -9 -8 -7 -7 -6 -6 -6 -6 -6 -5 -5 -5 -4 -4 -4 ------- Run | Yrd Mat Mat Mat Fac DSF Fac Was Fac Low Low Fac Ext Cet Fac Was Fac Combat Hostiles Destroyed 54 | . 6 15 23 . 1 . . . 1 . 4 . . . . 4 Guns 35 | . 6 6 17 . 1 . . . . . 1 . . . . 4 AOE 19 | . . 9 6 . . . . . 1 . 3 . . . . . Classes Destroyed 13 | . 1 8 2 . 1 . . . . . . . . . . 1 Worker 4 | . . 1 1 . . 2 . . . . . . . . . . Builder 9 | . . 1 3 . . 3 . 1 . . . . . 1 . . Hauler 6 | . . 1 4 . . 1 . . . . . . . . . . Recycler 4 | . . 1 2 . . 1 . . . . . . . . . . Mechanic 1 | . . . 1 . . . . . . . . . . . . . Operator 3 | . . 2 1 . . . . . . . . . . . . . Watcher 6 | . . 2 3 . . 1 . . . . . . . . . . Swarmer 17 | . 6 3 7 . . . . . . . 1 . . . . . Grunt 27 | . . 10 12 . . . . . 1 . 3 . . . . 1 Sentry 6 | . . 2 3 . . . . . . . . . . . . 1 Specialist 1 | . . . . . 1 . . . . . . . . . . . Hunter 1 | . . . 1 . . . . . . . . . . . . . Programmer 2 | . . . . . . . . . . . . . . . . 2 Best Kill Streak 9 | . 6 7 9 . 1 3 . 1 1 . 3 . . 1 . 2 Combat Bots Only 7 | . 6 6 7 . 1 . . . 1 . 3 . . . . 2 Max Kills in Single Turn 3 | . 1 3 3 . 1 1 . 1 1 . 1 . . 1 . 1 Gunslinging . | . . . . . . . . . . . . . . . . . Exploded 3 | . . 3 2 . . . . . 1 . 1 . . . . . Melee . | . . . . . . . . . . . . . . . . . Uniques/NPCs Destroyed . | . . . . . . . . . . . . . . . . . Combat | -11 -10 -9 -8 -7 -7 -6 -6 -6 -6 -6 -5 -5 -5 -4 -4 -4 -------- Run | Yrd Mat Mat Mat Fac DSF Fac Was Fac Low Low Fac Ext Cet Fac Was Fac Hostile Shots Fired 581 | . 29 52 137 . 2 12 . 16 17 . 35 74 4 150 . 53 Missed 197 | . 8 17 32 . 1 8 . 7 8 . 19 21 3 65 . 8 Damage Taken 6257 | . 170 410 1388 . 49 58 . 212 193 . 277 1185 24 1396 . 895 Core 2202 | . 57 36 264 . . . . 70 . . 51 552 . 1025 . 147 Absorbed by Shields 42 | . . . . . . . . . . . . 42 . . . . Reduced by Siege Mode 55 | . . . . . . . . . . . . . . . . 55 Ignored by Resistances 137 | . . . . . . . . . . . . . . . . 137 Core Remaining (%) 78 | 100 77 91 52 . 100 . . . . 91 . . 39 . . . Volleys Fired 186 | . 12 52 87 . 1 4 . . 4 . 10 1 . 2 . 13 Largest 4 | . 2 2 2 . 3 3 . . 3 . 2 2 . 1 . 4 Hottest 214 | . 90 112 130 . 104 104 . . 115 . 76 76 . 90 . 214 Shots Fired 382 | . 24 94 174 . 3 12 . . 8 . 14 2 . 2 . 49 Gun 329 | . 24 86 166 . 2 8 . . 2 . 4 1 . . . 36 Cannon 27 | . . . . . 1 4 . . 2 . 4 1 . 2 . 13 Launcher 26 | . . 8 8 . . . . . 4 . 6 . . . . . Special . | . . . . . . . . . . . . . . . . . Kinetic 135 | . 2 45 30 . 3 12 . . 4 . 8 2 . . . 29 Thermal 201 | . 22 33 136 . . . . . . . . . . 2 . 8 Explosive 16 | . . 8 8 . . . . . . . . . . . . . Electromagnetic 30 | . . 8 . . . . . . 4 . 6 . . . . 12 Robot Hit Streak 16 | . 4 8 11 . 2 4 . . 3 . 2 . . 1 . 16 Robot Miss Streak 6 | . 4 3 6 . 1 2 . . 2 . 3 2 . 3 . 4 Penetration Max 1 | . . . . . . 1 . . . . . . . . . . Secondary Targets 5 | . 2 . 3 . . . . . . . . . . . . . Max Gunslinging Chain 1 | . 1 . 1 . . . . . . . . . . . . . Shots Hit Robots 238 | . 11 57 114 . 2 16 . 1 3 . 3 . . 1 . 30 Core Hits 155 | . 7 38 76 . 3 4 . 1 4 . 10 . . 1 . 11 Critical Kills . | . . . . . . . . . . . . . . . . . Critical Parts Destroyed 7 | . . 1 . . . 5 . . . . . . . . . 1 Critical Strikes 14 | . . 3 5 . . 5 . . . . . . . . . 1 Burn 7 | . . 2 5 . . . . . . . . . . . . . Destroy 3 | . . 1 . . . 1 . . . . . . . . . 1 Smash 4 | . . . . . . 4 . . . . . . . . . . Melee Attacks 22 | . . . 1 3 . 14 . 1 . . 3 . . . . . Impact 22 | . . . 1 3 . 14 . 1 . . 3 . . . . . Slashing . | . . . . . . . . . . . . . . . . . Piercing . | . . . . . . . . . . . . . . . . . Sneak Attacks 7 | . . . . . . 6 . 1 . . . . . . . . Combat Hostiles . | . . . . . . . . . . . . . . . . . Follow-up Attacks . | . . . . . . . . . . . . . . . . . Damage Inflicted 7136 | . 126 1603 2805 . 40 775 . 115 259 . 534 . . 78 . 801 Guns 3782 | . 126 884 1879 . 40 142 . . 18 . 23 . . . . 670 Cannons 269 | . . . . . . 46 . . 24 . 50 . . 35 . 114 Explosions 2323 | . . 719 926 . . . . . 217 . 461 . . . . . Melee 702 | . . . . . . 587 . 115 . . . . . . . . Ramming 60 | . . . . . . . . . . . . . . 43 . 17 Kinetic 1767 | . 10 405 471 . 40 188 . . 42 . 73 . . . . 538 Thermal 2120 | . 116 341 1408 . . . . . . . 64 . . 35 . 156 Explosive 1645 | . . 719 926 . . . . . . . . . . . . . Electromagnetic 842 | . . 138 . . . . . . 217 . 397 . . . . 90 Impact 702 | . . . . . . 587 . 115 . . . . . . . . Slashing . | . . . . . . . . . . . . . . . . . Piercing . | . . . . . . . . . . . . . . . . . Highest Corruption 2 | . . 1 2 . . . 1 1 2 2 1 1 1 . . . Average Corruption 1 | . . 1 2 . . . 1 1 1 2 1 1 1 . . . Corruption Purged . | . . . . . . . . . . . . . . . . . Corruption Blocked 8 | . . . . . . . 8 . . . . . . . . . Effects 16 | . . . . . . . . 2 2 4 2 6 . . . . Message Errors 3 | . . . . . . . . . 1 . . 2 . . . . Matter Fused 4 | . . . . . . . . 1 . . 1 2 . . . . Heat Flow Errors 2 | . . . . . . . . 1 . 1 . . . . . . Energy Discharges 3 | . . . . . . . . . . 3 . . . . . . Data Loss (minor) 2 | . . . . . . . . . . . 1 1 . . . . Data Loss (major) 1 | . . . . . . . . . . . . 1 . . . . Alerts 1 | . . . . . . . . . 1 . . . . . . . Overload Shots . | . . . . . . . . . . . . . . . . . Overflow Damage 476 | . . . 30 . . 432 . . . . 14 . . . . . Projectiles 4 | . . . . . . . . . . . 4 . . . . . Explosions 40 | . . . 30 . . . . . . . 10 . . . . . Melee 432 | . . . . . . 432 . . . . . . . . . . Knockbacks 7 | . . . . . . 6 . . . . . . . . . 1 Impact 6 | . . . . . . 6 . . . . . . . . . . Kinetic 1 | . . . . . . . . . . . . . . . . 1 Secondary . | . . . . . . . . . . . . . . . . . Self-Inflicted Damage 31 | . . . . . . . . . 11 . . . . 20 . . Shots 1 | . . . . . . . . . 1 . . . . . . . Rammed 9 | . . . . . . . . . . . . . . 8 . 1 Targets Rammed 9 | . . . . . . . . . . . . . . 8 . 1 Kicked . | . . . . . . . . . . . . . . . . . Crushed . | . . . . . . . . . . . . . . . . . Highest Temperature 695 | . 300 . 377 . . 288 . 178 51 93 . . . 12 . 695 Average Temperature 118 | . 141 . 93 . . 73 . 100 29 62 . . . 9 . 182 Received Heat Transfer 1489 | . . 186 657 . . 27 . . 36 . 93 193 . 75 . 222 Effects 13 | . . . 1 . . . . . . . . . . . . 12 Shutdowns 3 | . . . . . . . . . . . . . . . . 3 Energy Bleed 5 | . . . . . . . . . . . . . . . . 5 Interference 1 | . . . 1 . . . . . . . . . . . . . Matter Decay 1 | . . . . . . . . . . . . . . . . 1 Damage (major) 2 | . . . . . . . . . . . . . . . . 2 Damage (core) 1 | . . . . . . . . . . . . . . . . 1 Siege Activations 3 | . . . . . . . . . . . . . . . . 3 Total Turns 40 | . . . . . . . . . . . . . . . . 40 Longest Duration 17 | . . . . . . . . . . . . . . . . 17 Robots Corrupted . | . . . . . . . . . . . . . . . . . Combat Hostiles . | . . . . . . . . . . . . . . . . . Parts Fried 14 | . . . . . . 13 . . . . 1 . . . . . Impact Corruptions 16 | . . . . . . 16 . . . . . . . . . . Robots Melted . | . . . . . . . . . . . . . . . . . Combat Hostiles . | . . . . . . . . . . . . . . . . . Parts Melted 9 | . . . 9 . . . . . . . . . . . . . Heat Transferred 5096 | . 310 888 3626 . . . . . . . 50 . . 37 . 185 Parts Sabotaged . | . . . . . . . . . . . . . . . . . Parts Stolen . | . . . . . . . . . . . . . . . . . Parts Stripped . | . . . . . . . . . . . . . . . . . Power Chain Reactions 1 | . . . . . . . . . . . 1 . . . . . Alert | -11 -10 -9 -8 -7 -7 -6 -6 -6 -6 -6 -5 -5 -5 -4 -4 -4 ------- Run | Yrd Mat Mat Mat Fac DSF Fac Was Fac Low Low Fac Ext Cet Fac Was Fac Peak Influence 740 | . 200 495 740 370 279 297 118 132 . . 385 466 255 167 28 107 Initial 325 | . . 84 157 325 259 146 103 79 . . 121 188 255 142 28 19 Average 258 | . 107 304 457 353 278 187 106 110 . . 197 282 255 123 28 27 Maximum Alert Level 3 | . 1 2 3 1 1 1 . . . . 1 2 1 . . . Low Security (%) 47 | 100 97 13 15 . . 73 100 100 . . 57 21 . 100 100 100 Level 1 29 | . 2 82 11 100 100 26 . . . . 42 70 100 . . . Level 2 20 | . . 3 66 . . . . . . . . 7 . . . . Level 3 1 | . . . 5 . . . . . . . . . . . . . Level 4 . | . . . . . . . . . . . . . . . . . Level 5 . | . . . . . . . . . . . . . . . . . High Security . | . . . . . . . . . . . . . . . . . Max Security . | . . . . . . . . . . . . . . . . . Squads Dispatched 15 | . . 2 5 . . . . 1 . . 1 1 . 2 . 3 Investigation 3 | . . . 1 . . . . . . . . 1 . 1 . . Extermination 2 | . . . . . . . . . . . 1 . . . . 1 Reinforcement 9 | . . 2 4 . . . . 1 . . . . . 1 . 1 Assault . | . . . . . . . . . . . . . . . . . Garrison 1 | . . . . . . . . . . . . . . . . 1 Intercept . | . . . . . . . . . . . . . . . . . Searches Triggered . | . . . . . . . . . . . . . . . . . Construction Impeded 2 | . . . 1 . . . . . . . . . . . . 1 Haulers Reinforced . | . . . . . . . . . . . . . . . . . Active Scanning Responses . | . . . . . . . . . . . . . . . . . Cargo Convoy Interrupts . | . . . . . . . . . . . . . . . . . Stealth | -11 -10 -9 -8 -7 -7 -6 -6 -6 -6 -6 -5 -5 -5 -4 -4 -4 --------- Run | Yrd Mat Mat Mat Fac DSF Fac Was Fac Low Low Fac Ext Cet Fac Was Fac Distress Signals 9 | . 1 2 2 . . 1 . . . . . . 1 . . 2 Communications Jammed . | . . . . . . . . . . . . . . . . . Distress Signals . | . . . . . . . . . . . . . . . . . Times Spotted 182 | . 10 19 45 2 1 6 6 4 9 1 17 23 4 23 . 12 Peak Tracking Total 20 | . 6 7 6 2 1 4 6 2 7 5 9 12 5 20 . 7 Tactical Retreats 25 | . 1 . 6 1 . 2 . . 3 1 4 5 . 2 . . Traps | -11 -10 -9 -8 -7 -7 -6 -6 -6 -6 -6 -5 -5 -5 -4 -4 -4 ------- Run | Yrd Mat Mat Mat Fac DSF Fac Was Fac Low Low Fac Ext Cet Fac Was Fac Traps Triggered 10 | . . 1 2 . . 1 . . . . 2 2 . 2 . . Indirectly . | . . . . . . . . . . . . . . . . . Trap Hack Attempts . | . . . . . . . . . . . . . . . . . Triggered . | . . . . . . . . . . . . . . . . . Disarmed . | . . . . . . . . . . . . . . . . . Reprogrammed . | . . . . . . . . . . . . . . . . . Reused . | . . . . . . . . . . . . . . . . . Traps Extracted . | . . . . . . . . . . . . . . . . . Installed . | . . . . . . . . . . . . . . . . . Triggered 2 | . . . . . . . . . 2 . . . . . . . Machines | -11 -10 -9 -8 -7 -7 -6 -6 -6 -6 -6 -5 -5 -5 -4 -4 -4 ---------- Run | Yrd Mat Mat Mat Fac DSF Fac Was Fac Low Low Fac Ext Cet Fac Was Fac Machines Disabled 3 | . . . 2 . . . . . . . 1 . . . . . Max in Single Turn 1 | . . . 1 . . . . . . . 1 . . . . . Garrison Access 2 | . . . . . . 1 . 1 . . . . . . . . Machines Repaired . | . . . . . . . . . . . . . . . . . Machines Dismantled . | . . . . . . . . . . . . . . . . . Machines Sabotaged . | . . . . . . . . . . . . . . . . . Overloaded Fab Kills . | . . . . . . . . . . . . . . . . . Hacking | -11 -10 -9 -8 -7 -7 -6 -6 -6 -6 -6 -5 -5 -5 -4 -4 -4 --------- Run | Yrd Mat Mat Mat Fac DSF Fac Was Fac Low Low Fac Ext Cet Fac Was Fac Machines Accessed 31 | . 2 . 5 3 . 3 . 4 3 . 3 5 . 1 . 2 Terminals 21 | . 2 . 5 3 . . . 3 . . 2 5 . . . 1 Fabricators 2 | . . . . . . . . . . . 1 . . 1 . . Repair Stations . | . . . . . . . . . . . . . . . . . Recycling Units 1 | . . . . . . 1 . . . . . . . . . . Scanalyzers 1 | . . . . . . 1 . . . . . . . . . . Garrison Access 3 | . . . . . . 1 . 1 . . . . . . . 1 Total Hacks 70 | . 4 . 14 9 . 4 . 15 6 . 6 8 . 2 . 2 Successful 49 | . 1 . 11 8 . 2 . 12 6 . 4 4 . 1 . . Failed 21 | . 3 . 3 1 . 2 . 3 . . 2 4 . 1 . 2 Catastrophic 1 | . . . . . . . . . . . . . . . . 1 Database Lockouts . | . . . . . . . . . . . . . . . . . Manual 37 | . 4 . 14 8 . 1 . 7 . . 1 . . . . 2 Terminals 55 | . 4 . 14 9 . . . 14 . . 5 8 . . . 1 Fabricators 3 | . . . . . . . . . . . 1 . . 2 . . Repair Stations . | . . . . . . . . . . . . . . . . . Recycling Units 2 | . . . . . . 2 . . . . . . . . . . Scanalyzers 1 | . . . . . . 1 . . . . . . . . . . Garrison Access 3 | . . . . . . 1 . 1 . . . . . . . 1 Terminal Hacks 19 | . . . 1 1 . . . 5 6 . 2 4 . . . . Record 5 | . . . . . . . . . 4 . 1 . . . . . Prototype ID Bank 1 | . . . . . . . . 1 . . . . . . . . Open Door 6 | . . . . . . . . . 2 . 1 3 . . . . Open DSF 1 | . . . . 1 . . . . . . . . . . . . Alert Level 1 | . . . . . . . . 1 . . . . . . . . Locate Traps 3 | . . . 1 . . . . 2 . . . . . . . . Recall Extermination 1 | . . . . . . . . . . . . 1 . . . . Hauler Manifests 1 | . . . . . . . . 1 . . . . . . . . Fabricator Hacks 2 | . . . . . . . . . . . 1 . . 1 . . Build 2 | . . . . . . . . . . . 1 . . 1 . . Repair Station Hacks . | . . . . . . . . . . . . . . . . . Recycling Unit Hacks . | . . . . . . . . . . . . . . . . . Scanalyzer . | . . . . . . . . . . . . . . . . . Garrison Access Hacks 2 | . . . . . . 1 . 1 . . . . . . . . Seal Access 2 | . . . . . . 1 . 1 . . . . . . . . Unauthorized Hacks 26 | . 1 . 10 7 . 1 . 6 . . 1 . . . . . Terminals 25 | . 1 . 10 7 . . . 6 . . 1 . . . . . Track 5 | . . . 2 2 . . . 1 . . . . . . . . Assimilate 1 | . . . 1 . . . . . . . . . . . . . Botnet 10 | . 1 . 3 2 . . . 3 . . 1 . . . . . Disrupt 6 | . . . 3 2 . . . 1 . . . . . . . . Operators 3 | . . . 1 1 . . . 1 . . . . . . . . Fabricators . | . . . . . . . . . . . . . . . . . Repair Stations . | . . . . . . . . . . . . . . . . . Recycling Units . | . . . . . . . . . . . . . . . . . Scanalyzers 1 | . . . . . . 1 . . . . . . . . . . Researchers 1 | . . . . . . 1 . . . . . . . . . . Garrison Access . | . . . . . . . . . . . . . . . . . Data Cores Recovered . | . . . . . . . . . . . . . . . . . Used . | . . . . . . . . . . . . . . . . . Hacking Detections 17 | . 1 . 3 2 . 1 . 3 . . 1 3 . 1 . 2 Full Trace Events 1 | . . . . . . . . . . . . 1 . . . . Feedback Events . | . . . . . . . . . . . . . . . . . Feedback Blocked . | . . . . . . . . . . . . . . . . . Robot Schematics Acquired . | . . . . . . . . . . . . . . . . . Robots Built 3 | . . . . . . . . . . . . . . 3 . . Authchips . | . . . . . . . . . . . . . . . . . Time 84 | . . . . . . . . . . . . . . 84 . . Total Robot Build Rating 18 | . . . . . . . . . . . . . . 18 . . Part Schematics Acquired . | . . . . . . . . . . . . . . . . . Parts Built 2 | . . . . . . . . . . . 2 . . . . . Authchips 1 | . . . . . . . . . . . 1 . . . . . Time 58 | . . . . . . . . . . . 58 . . . . . Total Part Build Rating 14 | . . . . . . . . . . . 14 . . . . . Parts Repaired . | . . . . . . . . . . . . . . . . . Time . | . . . . . . . . . . . . . . . . . Parts Recycled . | . . . . . . . . . . . . . . . . . Recycled Matter . | . . . . . . . . . . . . . . . . . Retrieved Matter . | . . . . . . . . . . . . . . . . . Retrieved Components . | . . . . . . . . . . . . . . . . . Parts Scanalyzed . | . . . . . . . . . . . . . . . . . Part Schematics Acquired . | . . . . . . . . . . . . . . . . . Parts Damaged . | . . . . . . . . . . . . . . . . . Bothacking | -11 -10 -9 -8 -7 -7 -6 -6 -6 -6 -6 -5 -5 -5 -4 -4 -4 ------------ Run | Yrd Mat Mat Mat Fac DSF Fac Was Fac Low Low Fac Ext Cet Fac Was Fac Used RIF Installer . | . . . . . . . . . . . . . . . . . Robots Hacked . | . . . . . . . . . . . . . . . . . Non-combat . | . . . . . . . . . . . . . . . . . Combat . | . . . . . . . . . . . . . . . . . Robot Hacks Applied . | . . . . . . . . . . . . . . . . . Relay Couplers Released . | . . . . . . . . . . . . . . . . . Fabnet Peak Effective % . | . . . . . . . . . . . . . . . . . Robots Rewired . | . . . . . . . . . . . . . . . . . Allies Hacked . | . . . . . . . . . . . . . . . . . Hacks Repelled . | . . . . . . . . . . . . . . . . . Allies | -11 -10 -9 -8 -7 -7 -6 -6 -6 -6 -6 -5 -5 -5 -4 -4 -4 -------- Run | Yrd Mat Mat Mat Fac DSF Fac Was Fac Low Low Fac Ext Cet Fac Was Fac Total Allies 11 | . . . 1 . . . 1 . 2 . . 4 . 3 . . Largest Group 3 | . . . 1 . . . 1 . 2 . . 2 . 3 . . Highest-Rated Group 159 | . . . 10 . . . 31 . 45 . . 159 . 90 . . Highest-Rated Ally 159 | . . . 10 . . . 31 . 25 . . 159 . 30 . . Total Orders . | . . . . . . . . . . . . . . . . . Ally Attacks 51 | . . . . . . . 6 . 4 . . 41 . . . . Total Damage 1076 | . . . . . . . 86 . 131 . . 859 . . . . Kills 7 | . . . . . . . . . 1 . . 6 . . . . Allies Corrupted 2 | . . . . . . . . . . . . 2 . . . . Allies Melted . | . . . . . . . . . . . . . . . . . Intel | -11 -10 -9 -8 -7 -7 -6 -6 -6 -6 -6 -5 -5 -5 -4 -4 -4 ------- Run | Yrd Mat Mat Mat Fac DSF Fac Was Fac Low Low Fac Ext Cet Fac Was Fac Robot Analysis Total . | . . . . . . . . . . . . . . . . . Derelict Logs Recovered 3 | . . . . . . . . . 1 2 . . . . . . Drone Launches . | . . . . . . . . . . . . . . . . . Drone Recoveries . | . . . . . . . . . . . . . . . . . Exploration | -11 -10 -9 -8 -7 -7 -6 -6 -6 -6 -6 -5 -5 -5 -4 -4 -4 ------------- Run | Yrd Mat Mat Mat Fac DSF Fac Was Fac Low Low Fac Ext Cet Fac Was Fac Turns Passed 4976 | 77 180 761 1341 102 39 338 38 248 171 135 255 349 23 239 219 461 Spaces Moved 4549 | 56 232 272 738 228 33 554 89 299 388 356 275 355 54 233 149 238 Core 232 | 6 . . . . . . . . . . . 93 14 88 31 . Treads 601 | . . . 245 . . . . . . . . . . . 118 238 Legs 480 | 50 42 250 138 . . . . . . . . . . . . . Wheels 74 | . . . 74 . . . . . . . . . . . . . Hover 2723 | . . . 281 228 33 554 89 299 388 356 275 207 . 13 . . Flight 439 | . 190 22 . . . . . . . . . 55 40 132 . . Fastest Speed 22 | 50 37 47 38 38 38 38 38 38 22 38 30 40 37 37 50 155 Average Speed 76 | 112 52 167 109 38 88 42 38 79 37 38 50 84 40 43 134 155 Slowest Speed 270 | 120 120 190 270 38 98 102 38 98 38 38 102 200 50 70 160 155 Overloaded Moves 71 | . . . . . . . . . 20 . 33 18 . . . . Propulsion Burnouts . | . . . . . . . . . . . . . . . . . Robots Hopped 2 | . . . . . . . . . . . . . . 2 . . Cave-ins Triggered . | . . . . . . . . . . . . . . . . . Exploration Rate (%) 32 | 4 41 27 73 8 42 19 76 8 46 29 8 53 23 8 83 9 Regions Visited 16 Branch Regions 4 Pre-discovered Areas . | . . . . . . . . . . . . . . . . . Known Exits Taken 1 | . . . . 1 . . . . . . . . . . . . Unknown Exits Taken 10 | 1 1 1 1 . . . . 1 1 1 1 1 1 . . . Scrap Searched 10 | . . . . . . . . . 10 . . . . . . . Spaces Dug 10 | . . . 1 2 . 2 . . . . 4 . . . . 1 Terrain Destroyed 107 | . . 51 39 2 . 2 . . . . 6 . . . . 7 Melee 8 | . . . 1 2 . 2 . . . . 3 . . . . . Projectile 8 | . . . . . . . . . . . 1 . . . . 7 AOE 91 | . . 51 38 . . . . . . . 2 . . . . . Terrain Rammed . | . . . . . . . . . . . . . . . . . Walls Destroyed . | . . . . . . . . . . . . . . . . . Machines Disabled . | . . . . . . . . . . . . . . . . . Actions | -11 -10 -9 -8 -7 -7 -6 -6 -6 -6 -6 -5 -5 -5 -4 -4 -4 --------- Run | Yrd Mat Mat Mat Fac DSF Fac Was Fac Low Low Fac Ext Cet Fac Was Fac Total 5612 | 67 269 482 1087 236 41 621 92 305 406 355 369 403 55 363 163 298 Wait 619 | . 2 131 195 1 . 38 3 . 9 . 74 19 . 118 . 29 Move 4531 | 55 231 271 737 227 32 554 88 298 387 355 274 354 53 229 148 238 Hop 2 | . . . . . . . . . . . . . . 2 . . Pick Up 39 | 6 3 4 5 3 2 2 . 1 1 . 2 4 . 1 1 4 Fast Attach 80 | 6 5 9 29 2 2 4 . 3 . . 1 3 . 1 10 5 Attach 20 | . . 2 3 . . . . . 1 . 3 5 1 2 3 . Detach 7 | . 1 . 1 . . . . . 1 . . 2 1 . . 1 Swap 24 | . 3 5 9 . . 1 1 . 1 . 1 . . . . 3 Drop 60 | . 12 8 20 . 4 4 . 2 2 . 1 2 . . 1 4 Fire 186 | . 12 52 87 . 1 4 . . 4 . 10 1 . 2 . 13 Melee 22 | . . . 1 3 . 14 . 1 . . 3 . . . . . Ram 8 | . . . . . . . . . . . . . . 8 . . Kick . | . . . . . . . . . . . . . . . . . Crush 1 | . . . . . . . . . . . . . . . . 1 Escape Stasis 13 | . . . . . . . . . . . . 13 . . . . Rewire . | . . . . . . . . . . . . . . . . . Trap . | . . . . . . . . . . . . . . . . . Miscellaneous . | . . . . . . . . . . . . . . . . . Route ------- -11/Scrapyard -10/Materials (discovered 2 exits: [*Mat] / [*Min]) -9/Materials (discovered 2 exits: *Mat / [*Min]) -8/Materials (discovered 2 exits: *Fac / [*Sto]) -7/Factory (discovered 2 exits: [*Low] / DSF) -7/DSF -6/Factory -6/Waste -6/Factory -6/Lower Caves -6/Lower Caves -5/Factory -5/Extension (discovered 2 exits: *Fac / [*Cet]) -5/Cetus -4/Factory -4/Waste -4/Factory History --------- Turn | Location | Event 8 | -11/Scrapyard | Discovered new exit (range 15) 78 | -11/Scrapyard | Entered Materials 243 | -10/Materials | Discovered new exit (range 11) 254 | -10/Materials | Discovered new exit (range 11) 258 | -10/Materials | Entered another Materials area 258 | -9/Materials | Evolved 2 slots: Propulsion x1, Utility x1 317 | -9/Materials | Build established: Mutant 776 | -9/Materials | Build established: Scavenger-Mutant 809 | -9/Materials | Discovered new exit (range 10) 933 | -9/Materials | Discovered new exit (range 16) 1019 | -9/Materials | Entered another Materials area 1019 | -8/Materials | Evolved 2 slots: Propulsion x1, Utility x1 1271 | -8/Materials | Destroyed 7 combat bots 1396 | -8/Materials | Lost 7 parts (1p2n2u2w) 1510 | -8/Materials | Discovered new exit (range 14) 2354 | -8/Materials | Discovered new exit (range 16) 2360 | -8/Materials | Entered Factory 2360 | -7/Factory | Evolved 2 slots: Weapon x2 2367 | -7/Factory | Discovered new exit (range 4) 2462 | -7/Factory | Identified exit to DSF 2462 | -7/Factory | Entered DSF 2483 | -7/DSF | Discovered new exit (range 16) 2493 | -7/DSF | Additional patrols routed to DSF 2501 | -7/DSF | Entered Factory 2501 | -6/Factory | Evolved 2 slots: Utility x2 2740 | -6/Factory | Build established: Hacker-Gunner 2751 | -6/Factory | Spotted B-75 Beast 2839 | -6/Factory | Sucked down chute 2839 | -6/Factory | Entered Waste 2840 | -6/Waste | Met a frightened Derelict 2843 | -6/Waste | Spotted C-40 Crusher 2843 | -6/Waste | Spotted C-40 Crusher 2854 | -6/Waste | EMP discharged 2854 | -6/Waste | Spotted C-40 Crusher 2857 | -6/Waste | Spotted C-40 Crusher 2857 | -6/Waste | Spotted C-40 Crusher 2869 | -6/Waste | Spotted C-40 Crusher 2872 | -6/Waste | Discovered new exit (range 16) 2877 | -6/Waste | Entered Factory 3121 | -6/Factory | Discovered new exit (range 5) 3125 | -6/Factory | Entered Lower Caves 3162 | -6/Lower Caves | Learned Factory stockpile data 3172 | -6/Lower Caves | Learned 8 Research zone layouts 3172 | -6/Lower Caves | Learned Research stockpile data 3172 | -6/Lower Caves | Learned Factory security intel 3172 | -6/Lower Caves | Learned Research security intel 3174 | -6/Lower Caves | A Commander dispatched an escort 3287 | -6/Lower Caves | Discovered new exit (range 9) 3296 | -6/Lower Caves | Entered another Lower Caves area 3304 | -6/Lower Caves | Learned Factory machine intel 3305 | -6/Lower Caves | Discovered new exit (range 8) 3401 | -6/Lower Caves | Learned 4 Factory zone layouts 3406 | -6/Lower Caves | Attracted the attention of an 0b10 checkpoint 3431 | -6/Lower Caves | Entered Factory 3431 | -5/Factory | Evolved 2 slots: Power x1, Propulsion x1 3435 | -5/Factory | Loaded intel: 224 machine locations 3508 | -5/Factory | Fabricated Impulse Thruster (x2) 3660 | -5/Factory | Lost 3 parts (1p1n1w) 3682 | -5/Factory | Discovered new exit (range 6) 3686 | -5/Factory | Entered Extension 3716 | -5/Extension | Rescued a captive Derelict 3717 | -5/Extension | Rescued a captive Derelict 3742 | -5/Extension | Rescued a captive Derelict 3807 | -5/Extension | Rescued A7 3912 | -5/Extension | Spotted B-75 Beast 3916 | -5/Extension | Spotted B-75 Beast 3920 | -5/Extension | Build established: Hacker-Mutant 3941 | -5/Extension | Core integrity fell below 50% 3959 | -5/Extension | Lost 7 parts (1p4n2u) 3978 | -5/Extension | Discovered new exit (range 16) 3978 | -5/Extension | Discovered new exit (range 16) 4035 | -5/Extension | Entered Cetus 4043 | -5/Cetus | Spotted Cetus Guard 4043 | -5/Cetus | Spotted Cetus Guard 4043 | -5/Cetus | Spotted Cetus Guard 4053 | -5/Cetus | Discovered new exit (range 16) 4058 | -5/Cetus | Entered Factory 4058 | -4/Factory | Evolved 2 slots: Propulsion x1, Utility x1 4148 | -4/Factory | Fabricated B-60 Warrior (x3) 4251 | -4/Factory | Lost 3 allies 4256 | -4/Factory | Core integrity fell below 50% 4291 | -4/Factory | Core integrity fell below 20% 4297 | -4/Factory | Sucked down chute 4297 | -4/Factory | Entered Waste 4297 | -4/Waste | The area was eerily silent 4324 | -4/Waste | Found Damper Plating 4328 | -4/Waste | Lost 9 parts (3n5u1w) 4417 | -4/Waste | Discovered new exit (range 13) 4425 | -4/Waste | Found Damper Plating 4516 | -4/Waste | Entered Factory 4809 | -4/Factory | Build established: Scavenger-Gunner 4916 | -4/Factory | Spotted B-86 Titan 4971 | -4/Factory | Garrison activated, responded to threat 4978 | -4/Factory | Core destroyed Last Messages --------------- 04970_ Overheating: Matter decay (-13). 04971_ Power failure, Antimatter Reactor shutdown. 04971_ G-67 Veteran calls for garrison reinforcements. 04971_ ALERT: Activating Garrison Access F004. 04971_ Slug penetrates G-67 Veteran. 04972_ Overheating: Railgun damaged (-127). 04972_ Overheating: Damper Plating damaged (-175). 04975_ Overheating: Energy bleed (-7). 04976_ Overheating: Energy bleed (-11). 04976_ Slug penetrates G-67 Veteran. 04976_ G-67 Veteran suffers critical hit (Destroy). 04976_ Destroyed Flexi-carbon Leg. 04976_ G-67 Veteran knocked back. 04976_ Slug penetrates G-67 Veteran. 04977_ Overheating: Energy bleed (-3). 04978_ Overheating: Core damaged (-126). Map ----- +----------------------------------------------------+ | ?????????????????????????????????????????????????? | | ?????????????????????????????????????????????????? | | ?????????????????????????????????????????????????? | | ?????????????????????????????????????????????????? | | ?????????????????????????????????????????????????? | | ?????????????????????????????????????????????????? | | ?????????????????????????????????????????????????? | | ?????????????????????????????????????????????????? | | ?????????????????????????????????????????????????? | | ?????????????????????????????????????????????????? | | ?????????????????????????????????????????????????? | | ?????????????????????????????????????????????????? | | ?????????????????????????????????????????????????? | | ?????????????????????????????????????????????????? | | ?????????????????????????????????????????????????? | | ?????????????????????????????????????????????????? | | ???????????????????????????????#?????????????????? | | ???? ? ????????????????????? #?????????????????? | | ?? ? ??????????????###### #?????????????????? | | ?????????????? ??????????????????? | | #??###########?# #??????????????????? | | #?? #?#u #??????????????????? | | # #?# #??????????????????? | | # """"""""" #?# #??????????????????? | | " # #?# # "?????????????? | | / """"""""" ###@ + "?????????????? | | # / g[g #??????????????????? | | " """"""""" #;[g #??????????????????? | | # ### #??????????????????? | | # " " #?# #??????????????????? | | # " " #?# #??????????????????? | | " ""G"" #?# #??????????????????? | | # #?# #??????????????????? | | ####+######+##?# #??????????????????? | | ][% #??# #????# #??? #??????????????????? | | [ #### ###### #### #??????????????????? | | [ % %k #??????????????????? | | ! #??????????????????? | | #??????????????????? | | #??????????????????? | | % #??????????????????? | | ###"######+##### ########??????????????????? | | ## ??????? ??# #?????????????????????????? | | ## ????????"" # #?????????????????????????? | | ## ??????????? # #?????????????????????????? | | ## ????????????# ##############????????????? | | ##?????????????# # #????????????? | | #??????????????# " T #????????????? | | #??????????????# # #????????????? | | ###########+#### # #????????????? | +----------------------------------------------------+ Best States ------------- Heat Dissipation 61 Energy Generation 21 Energy Capacity 325 Matter Stores 300 Matter Capacity 300 Sight Range 16 Terrain Scan Range 16 Terrain Scan Density 10 EM Shielding 4 Corruption Block 8 Armor Coverage 3200 Resistance: EM 90 Evasion (%) 72 Targeting Accuracy 8 Recoil Reduction 6 Kinecelleration 30 Offensive Hacking 30 Defensive Hacking 12 Authchip Count 2 Item Schematics ----------------- None Robot Schematics ------------------ None Fabricated ------------ Impulse Thruster | x2 | -5/Factory | Preloaded, Authchip B-60 Warrior | x3 | -4/Factory | Preloaded Alien Tech Used ----------------- None Achievements -------------- Below My Command Is Your Wish Prison Break Turtlemind Whoosh! Challenges ------------ None Game ------ Seed MiningHelicalDetector Manual? 0 Play Time 01:44:00 Cumulative 43.0 hours Start 2024.04.21 @ 22:03:15 End 2024.04.22 @ 00:00:50 Sessions 1 Manual Loads 0 Difficulty Rogue Special Mode None Game No. 40 Rogue 28 Adventurer 12 Explorer 0 Win Type - Total 0 Types 0/0/0/0/0/0/0/0/0 Lore% 22 Gallery% 37 Achievement% 31 Wizard Run 0 Options --------- Layout 2 ASCII 0 Keyboard 0 Movement Mouse Keybinds 0 Fullscreen 1 Font 24/Smallcaps Map View 50x44 Zoom Use 12% Tactical HUD 1 Map Filters NONE Filters NONE Steam 1 RUN: d77c99c3-1edf-44b9-906a-0840737ddd41